Cogmind - Beta 15 @@@ ROGUE MODE // 2025.05.06 @ 15:43:45 Player: jumpy Result: Self-destructed Performance ------------- Evolutions (4) 2000 Regions Visited (7) 1400 Robots Destroyed (77) 385 Value Destroyed (2497) 2497 Prototype IDs (3) 60 Alien Tech Used (0) 0 Bonus (80) 80 TOTAL SCORE: 6422 Bonus ------- Follower Combat Kills 80 Cogmind --------- Core Integrity 626/850 Matter 153/300 Energy 68/290 System Corruption 14% Temperature Cool (0) Movement Treading (240) Ox1 Location -6/Factory Parts ------- > --- POWER (1) -------- Improved Deuterium Engine > --- PROPULSION (4) --- Light Treads Light Treads > --- UTILITY (6) ------ High-capacity Storage Unit > --- WEAPON (4) ------- Long-range Missile Launcher Power Sword Power Sword > --- INVENTORY (20) --- Light Ion Engine Improved Deuterium Engine Improved Deuterium Engine Micro Nuclear Core Light Treads Armored Treads Heavy Laser Heavy Laser Heavy Plasma Cannon Gauss Rifle Advanced Assault Cannon Advanced Assault Cannon Power Sword Peak State ------------ > --- POWER ------------ Improved Deuterium Engine > --- PROPULSION ------- Armored Treads Advanced Treads Medium Treads Improved Medium Treads > --- UTILITY ---------- High-capacity Storage Unit Improved Terrain Scanner Improved Targeting Computer Advanced Targeting Computer Improved Medium Armor Plating High-powered Tractor Beam > --- WEAPON ----------- Flak Gun Flak Gun Flak Gun Flak Gun > --- INVENTORY -------- Light Ion Engine Improved Deuterium Engine Improved Deuterium Engine Micro Nuclear Core Light Treads Light Treads Light Treads Light Treads Heavy Laser Heavy Laser Heavy Plasma Cannon Autogun Autogun Flak Cannon Advanced Assault Cannon Advanced Assault Cannon Precision Grenade Launcher Heavy Flail Heavy Flail Power Sword [Rating: 57] Favorites ----------- Power Improved Deuterium Engine Engine Improved Deuterium Engine Power Core Micro Nuclear Core Propulsion Wheel Treads Light Treads Wheel Wheel Utility Advanced Targeting Computer Device Improved Terrain Scanner Storage Small Storage Unit Processor Advanced Targeting Computer Protection Improved Medium Armor Plating Weapon Flak Gun Energy Gun Particle Gun Energy Cannon Cooled Particle Cannon Ballistic Gun Flak Gun Ballistic Cannon Assault Cannon Launcher Precision Grenade Launcher Slashing Weapon Power Sword Build | -11 -10 -10 -8 -7 -7 -7 -6 ------- Run | Yrd Mat Sub Mat Fac Low Low Fac Slots Evolved 8 | . . . 4 2 . . 2 Power . | . . . . . . . . Propulsion 2 | . . . 2 . . . . Utility 4 | . . . 2 1 . . 1 Weapon 2 | . . . . 1 . . 1 Parts Attached 71 | 7 . . 21 22 1 1 19 Power 10 | 1 . . 3 2 1 . 3 Engine 9 | 1 . . 3 1 1 . 3 Core 1 | . . . . 1 . . . Reactor . | . . . . . . . . Propulsion 23 | 2 . . 7 6 . . 8 Treads 17 | 2 . . 5 3 . . 7 Leg . | . . . . . . . . Wheel 6 | . . . 2 3 . . 1 Hover . | . . . . . . . . Flight . | . . . . . . . . Utility 16 | 2 . . 4 8 . 1 1 Device 6 | 1 . . 2 2 . 1 . Storage 3 | 1 . . . 2 . . . Processor 2 | . . . 1 . . . 1 Hackware . | . . . . . . . . Protection 5 | . . . 1 4 . . . Artifact . | . . . . . . . . Weapon 22 | 2 . . 7 6 . . 7 Energy Gun 3 | . . . 3 . . . . Energy Cannon 1 | . . . . 1 . . . Ballistic Gun 10 | 2 . . 1 4 . . 3 Ballistic Cannon 3 | . . . 2 . . . 1 Launcher 3 | . . . 1 1 . . 1 Special Weapon . | . . . . . . . . Impact Weapon . | . . . . . . . . Slashing Weapon 2 | . . . . . . . 2 Piercing Weapon . | . . . . . . . . Special Melee Weapon . | . . . . . . . . Unidentified Prototypes 2 | . . . 1 1 . . . Parts Lost 28 | . . . 8 3 . . 17 Power 3 | . . . 1 1 . . 1 Propulsion 11 | . . . 5 1 . . 5 Utility 8 | . . . 2 1 . . 5 Weapon 6 | . . . . . . . 6 Highest Loss Streak 15 | . . . 4 1 . . 15 To Critical Strikes 1 | . . . . . . . 1 Average Backups 11 | 2 4 4 6 7 15 16 19 Power 1 | . 1 1 . . 1 2 3 Propulsion 2 | 1 2 2 1 1 4 5 4 Utility . | . 1 1 2 . . . . Weapon 5 | . . . 1 4 9 9 10 Tool/Special . | . . . . . . . . Unused Backups 13 | . . . . . . . 13 Power 1 | . . . . . . . 1 Propulsion 3 | . . . . . . . 3 Utility . | . . . . . . . . Weapon 9 | . . . . . . . 9 Tool/Special . | . . . . . . . . Average Slot Usage (%) 93 | . 100 100 81 93 100 98 96 Engine 6 | . 14 14 8 5 6 7 5 Treads 19 | . 28 28 21 18 . . 23 Wheel 6 | . . . 1 7 30 30 1 Device 13 | . 14 14 12 14 15 13 12 Storage 7 | . 14 14 9 7 7 7 6 Processor 8 | . . . 7 7 7 7 11 Protection 5 | . . . 2 6 7 7 5 Ballistic Gun 18 | . 28 28 10 15 23 23 23 Ballistic Cannon 1 | . . . 4 2 . . 1 Launcher 1 | . . . . 2 . . . Peak Build Rating 57 | 7 7 7 22 40 37 38 57 Average Rating 34 | 5 7 7 15 34 37 37 53 On Entrance 19 | . 7 7 7 22 37 37 38 Naked Turns . | . . . . . . . . Heaviest Build 113 | 15 15 15 27 113 78 78 77 Greatest Support 106 | 40 40 40 80 90 40 40 106 Greatest Overweight (x) 11 | . . . . 11 1 1 1 Average Overweight (x) . | . . . . . 1 1 . Largest Inventory Capacity 25 | 8 8 8 8 25 20 20 20 Average Capacity 13 | 7 8 8 8 10 20 20 20 Most Carried 20 | 4 4 6 8 14 16 16 20 Average Carried 11 | 2 4 5 6 7 15 16 19 Final Capacity 20 | 8 8 8 8 20 20 20 20 Final Carried 16 | 4 4 6 5 14 16 16 13 Class Distribution -------------------- 42% | Gunner 20% | Mutant 19% | Scavenger-Gunner 7% | Skirmisher 7% | Scavenger-Mutant Dominant Class ---------------- Mutant | -10/Materials Mutant | -10/Subcaves Mutant | -8/Materials Gunner | -7/Factory Scavenger-Gunner | -7/Lower Caves Scavenger-Gunner | -7/Lower Caves Gunner | -6/Factory Resources | -11 -10 -10 -8 -7 -7 -7 -6 ----------- Run | Yrd Mat Sub Mat Fac Low Low Fac Matter Collected 2506 | 328 . 62 389 791 215 29 692 Remotely 682 | . . . . . . 10 672 Salvage Created 2519 | 164 . 65 919 679 45 . 647 Parts 146 | 13 . 6 51 40 4 . 32 Haulers Intercepted . | . . . . . . . . Recyclers Shooed 5 | 1 . . 1 3 . . . Parts Field Recycled 1 | . . . . 1 . . . Retrieved Matter 1 | . . . . 1 . . . Parts Self-Destructed 14 | . . 12 . . 2 . . Prevented . | . . . . . . . . Kills | -11 -10 -10 -8 -7 -7 -7 -6 ------- Run | Yrd Mat Sub Mat Fac Low Low Fac Combat Hostiles Destroyed 52 | . . 2 17 12 1 . 20 Melee 1 | . . . . 1 . . . Guns 40 | . . 2 9 10 1 . 18 Cannons 6 | . . . 5 1 . . . AOE 5 | . . . 3 . . . 2 Classes Destroyed 12 | 2 . 2 5 1 . . 2 Worker 8 | . . . 4 2 . . 2 Builder 2 | . . . 1 1 . . . Tunneler 5 | 5 . . . . . . . Recycler 7 | 1 . . 2 4 . . . Watcher 3 | . . . 1 1 . . 1 Swarmer 15 | . . 1 3 4 . . 7 Grunt 10 | . . . 10 . . . . Brawler 2 | . . . . . . . 2 Duelist 3 | . . . . . . . 3 Sentry 11 | . . 1 3 4 1 . 2 Hunter 5 | . . . 1 2 . . 2 Programmer 6 | . . . . 2 . . 4 Best Kill Streak 8 | 3 . 1 8 6 1 . 6 Combat Bots Only 6 | . . 1 4 5 1 . 6 Max Kills in Single Turn 4 | 1 . 1 4 2 1 . 2 Gunslinging 1 | . . . . 1 . . . Exploded 2 | . . . 2 . . . 1 Melee 1 | . . . . 1 . . . Uniques/NPCs Destroyed . | . . . . . . . . Combat | -11 -10 -10 -8 -7 -7 -7 -6 -------- Run | Yrd Mat Sub Mat Fac Low Low Fac Hostile Shots Fired 593 | . . 51 119 177 18 . 228 Missed 184 | . . 22 33 64 6 . 59 Hits 409 | . . 29 86 113 12 . 169 Melee 15 | . . . . . . . 15 Projectile 394 | . . 29 86 113 12 . 154 Critical Strikes 10 | . . . 2 . . . 8 Damage Taken 5590 | . . 205 1352 1275 92 . 2666 Core 455 | . . 6 123 92 10 . 224 Absorbed by Shields . | . . . . . . . . Core Remaining (%) 89 | 100 . 97 77 . . 85 . Volleys Fired 163 | 14 . 6 63 42 2 . 36 Largest 4 | 2 . 2 2 3 3 . 4 Hottest 121 | 40 . 40 102 103 84 . 121 Shots Fired 415 | 28 . 12 126 116 6 . 127 Gun 359 | 28 . 12 95 105 6 . 113 Cannon 48 | . . . 26 10 . . 12 Launcher 8 | . . . 5 1 . . 2 Special . | . . . . . . . . Kinetic 380 | 28 . 12 99 110 6 . 125 Thermal 27 | . . . 22 5 . . . Explosive 3 | . . . . 1 . . 2 Electromagnetic 5 | . . . 5 . . . . Robot Hit Streak 23 | 9 . 3 21 12 5 . 23 Robot Miss Streak 7 | 2 . 2 7 6 2 . 6 Penetration Max . | . . . . . . . . Secondary Targets 4 | . . . 1 3 . . . Max Gunslinging Chain 2 | . . . 1 2 . . . Shots Hit Robots 318 | 22 . 6 99 87 5 . 99 Core Hits 292 | 7 . 3 62 76 8 . 136 Critical Kills . | . . . . . . . . Critical Parts Destroyed 1 | 1 . . . . . . . Critical Strikes 3 | 1 . . 2 . . . . Burn 2 | . . . 2 . . . . Destroy 1 | 1 . . . . . . . Melee Attacks . | . . . . . . . . Impact . | . . . . . . . . Slashing . | . . . . . . . . Piercing . | . . . . . . . . Sneak Attacks . | . . . . . . . . Combat Hostiles . | . . . . . . . . Follow-up Attacks . | . . . . . . . . Damage Inflicted 6508 | 262 . 72 2146 1625 108 . 2295 Guns 4608 | 262 . 72 941 1445 108 . 1780 Cannons 887 | . . . 540 158 . . 189 Explosions 987 | . . . 662 . . . 325 Melee . | . . . . . . . . Ramming 26 | . . . 3 22 . . 1 Kinetic 5167 | 262 . 72 1209 1547 108 . 1969 Thermal 757 | . . . 701 56 . . . Explosive 325 | . . . . . . . 325 Electromagnetic 233 | . . . 233 . . . . Impact . | . . . . . . . . Slashing . | . . . . . . . . Piercing . | . . . . . . . . Highest Corruption 14 | . . . . 3 3 3 14 Average Corruption 2 | . . . . 2 3 3 1 Corruption Purged . | . . . . . . . . Corruption Blocked . | . . . . . . . . Effects 27 | . . . . 15 7 . 5 Message Errors 8 | . . . . 6 1 . 1 Matter Fused 6 | . . . . 5 . . 1 Heat Flow Errors 1 | . . . . . 1 . . Energy Discharges 1 | . . . . . . . 1 Parts Fused 1 | . . . . . . . 1 Data Loss (minor) 2 | . . . . 1 1 . . Data Loss (major) 5 | . . . . 1 4 . . Misfires 3 | . . . . 2 . . 1 Overload Shots . | . . . . . . . . Overflow Damage 192 | . . . 162 21 . . 9 Projectiles 21 | . . . . 21 . . . Explosions 171 | . . . 162 . . . 9 Melee . | . . . . . . . . Knockbacks 26 | . . . 14 2 . . 10 Impact 1 | . . . . 1 . . . Kinetic 23 | . . . 13 1 . . 9 Secondary 2 | . . . 1 . . . 1 Self-Inflicted Damage 262 | . . . 79 42 . . 141 Shots 5 | . . . 2 1 . . 2 Rammed 6 | . . . 1 3 . . 2 Targets Rammed 7 | . . . 1 4 . . 2 Kicked . | . . . . . . . . Crushed 1 | . . . . 1 . . . Highest Temperature 267 | . . . 267 66 149 . 80 Average Temperature 38 | . . . 69 16 52 . 22 Received Heat Transfer 894 | . . 129 549 138 30 . 48 Siege Activations . | . . . . . . . . Martial Activations . | . . . . . . . . Shielding Activations . | . . . . . . . . Robots Disrupted . | . . . . . . . . Combat Hostiles . | . . . . . . . . Robots Corrupted . | . . . . . . . . Combat Hostiles . | . . . . . . . . Parts Fried . | . . . . . . . . Impact Corruptions . | . . . . . . . . Robots Melted . | . . . . . . . . Combat Hostiles . | . . . . . . . . Parts Melted 1 | . . . 1 . . . . Heat Transferred 1188 | . . . 1114 74 . . . Parts Sabotaged . | . . . . . . . . Parts Stolen . | . . . . . . . . Parts Stripped . | . . . . . . . . Power Chain Reactions . | . . . . . . . . Alert | -11 -10 -10 -8 -7 -7 -7 -6 ------- Run | Yrd Mat Sub Mat Fac Low Low Fac Maximum Alert Level 1 | . . . 1 . . . 1 Low Security (%) 95 | 100 100 . 81 100 . . 98 Level 1 4 | . . . 18 . . . 1 Level 2 . | . . . . . . . . Level 3 . | . . . . . . . . Level 4 . | . . . . . . . . Level 5 . | . . . . . . . . High Security . | . . . . . . . . Max Security . | . . . . . . . . Peak Influence 297 | 10 3 . 297 152 . . 218 Initial 123 | . 3 . 75 123 . . . Average 67 | 1 . . 97 58 . . 73 Influence Increases 1996 | 30 . 205 620 416 20 . 705 Destroy 0b10 Robot/C 1080 | . . 40 340 240 20 . 440 Destroy 0b10 Robot/NC 125 | 30 . . 40 40 . . 15 Destroy Leader 296 | . . . 92 92 . . 112 Allied During Kill 4 | . . . . . . . 4 Successful Hack 5 | . . . . 5 . . . Disable Machine 75 | . . . 45 . . . 30 Destroy Structure 66 | . . . 28 9 . . 29 Lose Combat Pursuer 345 | . . 165 75 30 . . 75 Influence Decreases 1817 | 25 5 60 492 553 156 . 526 Entered New Map 273 | . 2 . 70 150 51 . . Time Decay 1284 | 25 3 60 342 393 105 . 356 Lost Part 260 | . . . 80 10 . . 170 Squads Dispatched 21 | . 1 . 2 5 . . 13 Investigation . | . . . . . . . . Extermination 7 | . . . . 3 . . 4 Reinforcement 7 | . 1 . 2 2 . . 2 Assault . | . . . . . . . . Garrison 7 | . . . . . . . 7 Intercept . | . . . . . . . . Searches Triggered . | . . . . . . . . Construction Impeded 2 | . . . 1 . . . 1 Haulers Reinforced . | . . . . . . . . Active Scanning Responses . | . . . . . . . . Cargo Convoy Interrupts 1 | . . . . . . . 1 Stealth | -11 -10 -10 -8 -7 -7 -7 -6 --------- Run | Yrd Mat Sub Mat Fac Low Low Fac Distress Signals 5 | . 1 . 1 2 . . 1 Communications Jammed . | . . . . . . . . Distress Signals . | . . . . . . . . Times Spotted 105 | . . 11 27 21 1 . 45 Peak Tracking Total 12 | . . 5 8 4 1 . 12 Tactical Retreats 11 | . . 2 4 2 . . 3 Traps | -11 -10 -10 -8 -7 -7 -7 -6 ------- Run | Yrd Mat Sub Mat Fac Low Low Fac Traps Triggered 2 | . . . 1 . . . 1 Indirectly . | . . . . . . . . Trap Hack Attempts . | . . . . . . . . Triggered . | . . . . . . . . Disarmed . | . . . . . . . . Reprogrammed . | . . . . . . . . Reused . | . . . . . . . . Traps Extracted . | . . . . . . . . Installed . | . . . . . . . . Triggered . | . . . . . . . . Machines | -11 -10 -10 -8 -7 -7 -7 -6 ---------- Run | Yrd Mat Sub Mat Fac Low Low Fac Machines Disabled 5 | . . . 3 . . . 2 Max in Single Turn 3 | . . . 3 . . . 2 Machines Repaired . | . . . . . . . . Machines Dismantled . | . . . . . . . . Machines Sabotaged . | . . . . . . . . Overloaded Fab Kills . | . . . . . . . . Hacking | -11 -10 -10 -8 -7 -7 -7 -6 --------- Run | Yrd Mat Sub Mat Fac Low Low Fac Machines Accessed 5 | . . . . 3 . . 2 Terminals 2 | . . . . 2 . . . Fabricators 1 | . . . . 1 . . . Repair Stations . | . . . . . . . . Recycling Units . | . . . . . . . . Scanalyzers 2 | . . . . . . . 2 Garrison Access . | . . . . . . . . Total Hacks 7 | . . . . 4 . . 3 Successful 4 | . . . . 2 . . 2 Failed 3 | . . . . 2 . . 1 Catastrophic . | . . . . . . . . Database Lockouts . | . . . . . . . . Manual 1 | . . . . 1 . . . Terminals 3 | . . . . 3 . . . Fabricators 1 | . . . . 1 . . . Repair Stations . | . . . . . . . . Recycling Units . | . . . . . . . . Scanalyzers 3 | . . . . . . . 3 Garrison Access . | . . . . . . . . Terminal Hacks 1 | . . . . 1 . . . Open DSF 1 | . . . . 1 . . . Fabricator Hacks 1 | . . . . 1 . . . Build 1 | . . . . 1 . . . Repair Station Hacks . | . . . . . . . . Recycling Unit Hacks . | . . . . . . . . Scanalyzer 2 | . . . . . . . 2 Insert Component 1 | . . . . . . . 1 Analyze 1 | . . . . . . . 1 Garrison Access Hacks . | . . . . . . . . Unauthorized Hacks . | . . . . . . . . Terminals . | . . . . . . . . Fabricators . | . . . . . . . . Repair Stations . | . . . . . . . . Recycling Units . | . . . . . . . . Scanalyzers . | . . . . . . . . Garrison Access . | . . . . . . . . Data Cores Recovered . | . . . . . . . . Used . | . . . . . . . . Hacking Detections . | . . . . . . . . Full Trace Events . | . . . . . . . . Feedback Events . | . . . . . . . . Feedback Blocked . | . . . . . . . . Robot Schematics Acquired . | . . . . . . . . Robots Built . | . . . . . . . . Authchips . | . . . . . . . . Time . | . . . . . . . . Total Robot Build Rating . | . . . . . . . . Part Schematics Acquired 1 | . . . . . . . 1 Parts Built 1 | . . . . 1 . . . Authchips . | . . . . . . . . Time 134 | . . . . 134 . . . Total Part Build Rating 4 | . . . . 4 . . . Parts Repaired . | . . . . . . . . Time . | . . . . . . . . Parts Recycled . | . . . . . . . . Recycled Matter . | . . . . . . . . Retrieved Matter . | . . . . . . . . Retrieved Components . | . . . . . . . . Parts Scanalyzed 1 | . . . . . . . 1 Part Schematics Acquired 1 | . . . . . . . 1 Parts Damaged . | . . . . . . . . Bothacking | -11 -10 -10 -8 -7 -7 -7 -6 ------------ Run | Yrd Mat Sub Mat Fac Low Low Fac Used RIF Installer . | . . . . . . . . Robots Hacked . | . . . . . . . . Non-combat . | . . . . . . . . Combat . | . . . . . . . . Robot Hacks Applied . | . . . . . . . . Relay Couplers Released . | . . . . . . . . Fabnet Peak Effective % . | . . . . . . . . Robots Rewired 1 | . . . . . . . 1 Allies Hacked . | . . . . . . . . Hacks Repelled . | . . . . . . . . Allies | -11 -10 -10 -8 -7 -7 -7 -6 -------- Run | Yrd Mat Sub Mat Fac Low Low Fac Total Allies 1 | . . . . . . . 1 Largest Group 1 | . . . . . . . 1 Highest-Rated Group 41 | . . . . . . . 41 Highest-Rated Ally 41 | . . . . . . . 41 Total Orders 1 | . . . . . . . 1 FOLLOW 1 | . . . . . . . 1 Ally Attacks 11 | . . . . . . . 11 Total Damage 426 | . . . . . . . 426 Kills 2 | . . . . . . . 2 Allies Corrupted . | . . . . . . . . Allies Melted . | . . . . . . . . Intel | -11 -10 -10 -8 -7 -7 -7 -6 ------- Run | Yrd Mat Sub Mat Fac Low Low Fac Active Infowar (turns) 4594 | 91 61 194 760 1646 479 50 1313 Optics 626 | . . . 242 384 . . . Terrain 3811 | . . . 323 1646 479 50 1313 Seismic 1388 | 91 61 194 471 571 . . . Robot Analysis Total . | . . . . . . . . Derelict Logs Recovered 1 | . . 1 . . . . . Drone Launches . | . . . . . . . . Drone Recoveries . | . . . . . . . . Exploration | -11 -10 -10 -8 -7 -7 -7 -6 ------------- Run | Yrd Mat Sub Mat Fac Low Low Fac Turns Passed 4739 | 217 61 194 760 1646 479 50 1332 Spaces Moved 2742 | 105 36 107 347 912 481 51 703 Core 9 | 9 . . . . . . . Treads 1748 | 96 36 107 284 587 . . 638 Legs . | . . . . . . . . Wheels 985 | . . . 63 325 481 51 65 Hover . | . . . . . . . . Flight . | . . . . . . . . Fastest Speed 50 | 50 160 160 90 90 95 95 100 Average Speed 137 | 150 160 160 147 141 95 95 153 Slowest Speed 245 | 160 160 160 160 245 95 95 162 Overloaded Moves . | . . . . . . . . Propulsion Burnouts . | . . . . . . . . Robots Hopped . | . . . . . . . . Potential Cave-ins . | . . . . . . . . Cave-ins Triggered . | . . . . . . . . Exploration Rate (%) 25 | 7 12 17 36 31 71 9 18 Regions Visited 7 Branch Regions 3 Pre-discovered Areas . | . . . . . . . . Known Exits Taken . | . . . . . . . . Unknown Exits Taken 7 | 1 1 1 1 1 1 1 . Scrap Searched 2 | . . . . . 1 1 . Spaces Dug . | . . . . . . . . Terrain Destroyed 104 | . . . 41 20 . . 43 Melee . | . . . . . . . . Projectile 1 | . . . . 1 . . . AOE 103 | . . . 41 19 . . 43 Terrain Rammed . | . . . . . . . . Walls Destroyed . | . . . . . . . . Machines Disabled . | . . . . . . . . Actions | -11 -10 -10 -8 -7 -7 -7 -6 --------- Run | Yrd Mat Sub Mat Fac Low Low Fac Total 3359 | 133 40 118 463 1178 497 52 878 Wait 291 | 4 5 4 25 167 13 . 73 Move 2735 | 104 35 106 346 911 480 50 703 Hop . | . . . . . . . . Pick Up 40 | 4 . 2 2 14 1 . 17 Fast Attach 25 | 7 . . 9 6 . 1 2 Attach 21 | . . . 3 4 . . 14 Detach 3 | . . . . 2 . . 1 Swap 36 | . . . 9 17 1 . 9 Drop 34 | . . . 5 11 . 1 17 Fire 163 | 14 . 6 63 42 2 . 36 Melee . | . . . . . . . . Ram 1 | . . . . 1 . . . Kick . | . . . . . . . . Crush 6 | . . . 1 3 . . 2 Escape Stasis . | . . . . . . . . Rewire 4 | . . . . . . . 4 Trap . | . . . . . . . . Miscellaneous . | . . . . . . . . Route ------- -11/Scrapyard -10/Materials -10/Subcaves (discovered 2 exits: [*Mat] / [*Rec]) -8/Materials -7/Factory (discovered 2 exits: *Fac / [*Low]) -7/Lower Caves -7/Lower Caves -6/Factory History --------- Turn | Location | Event 5 | -11/Scrapyard | Discovered new exit (range 15) 218 | -11/Scrapyard | Entered Materials 219 | -10/Materials | Met a group of wandering Federalists 276 | -10/Materials | Discovered new exit (range 3) 279 | -10/Materials | Entered Subcaves 280 | -10/Subcaves | Continued accompanying wandering Federalists (3) 309 | -10/Subcaves | Learned Materials security intel 314 | -10/Subcaves | Build established: Mutant 380 | -10/Subcaves | Discovered new exit (range 14) 396 | -10/Subcaves | Lost 3 allies 463 | -10/Subcaves | Discovered new exit (range 5) 473 | -10/Subcaves | Entered Materials 473 | -8/Materials | Evolved 4 slots: Propulsion x2, Utility x2 863 | -8/Materials | Lost 4 parts (1p2n1u) 1223 | -8/Materials | Discovered new exit (range 12) 1233 | -8/Materials | Entered Factory 1233 | -7/Factory | Evolved 2 slots: Utility x1, Weapon x1 1432 | -7/Factory | Fabricated Cld. Particle Cannon (x1) 1595 | -7/Factory | Build established: Skirmisher 2074 | -7/Factory | Discovered new exit (range 16) 2859 | -7/Factory | Discovered new exit (range 14) 2879 | -7/Factory | Entered Lower Caves 2884 | -7/Lower Caves | Attracted the attention of an 0b10 checkpoint 2928 | -7/Lower Caves | Build established: Scavenger-Gunner 3345 | -7/Lower Caves | Discovered new exit (range 10) 3358 | -7/Lower Caves | Entered another Lower Caves area 3399 | -7/Lower Caves | Discovered new exit (range 10) 3408 | -7/Lower Caves | Entered Factory 3408 | -6/Factory | Evolved 2 slots: Utility x1, Weapon x1 3794 | -6/Factory | Build established: Gunner 4026 | -6/Factory | Garrison activated, responded to threat 4397 | -6/Factory | Garrison activated, responded to threat 4628 | -6/Factory | Allied Derelicts emerged from ambush trap array 4672 | -6/Factory | Cargo convoy interrupted 4689 | -6/Factory | Garrison activated, responded to threat 4710 | -6/Factory | Lost 3 allies 4717 | -6/Factory | System corruption reached 10% 4740 | -6/Factory | Self-destructed Last Messages --------------- 04723_ U-05 Engineer builds a Wall. 04725_ Slug penetrates P-60 Hacker. 04725_ P-60 Hacker destroyed. 04725_ K-01 Serf cleans the Terminal. 04726_ U-05 Engineer builds a Wall. 04726_ K-01 Serf cleans the Assembly Bed. 04728_ Penetrated by Slug. 04729_ K-01 Serf cleans the Assembly Bed. 04733_ Penetrated by Slug. 04734_ L-41 Fighter destroyed. 04734_ K-01 Serf destroyed. 04735_ ALERT: Construction progress impeded, dispatching reinforcements to local area. 04737_ Penetrated by Slug. 04737_ Lgt. Treads destroyed. 04737_ Destroyed Lgt. Treads. 04737_ Arm. Treads destroyed. 04737_ Destroyed Arm. Treads. 04737_ H-66 Slayer destroyed. 04739_ U-05 Engineer builds a Door. Map ----- +----------------------------------------------------+ | ?????????????????????????????????????????????????? | | ?????????????????????????????????????????????????? | | ?????????????????????????????????????????????????? | | ?????????????????????????????????????????????????? | | ?????#+###???????????????????????????????????????? | | ?? ???????????????????????????????????????? | | ??? ???????###?????????????????????????????? | | ??? ??????? ??? ?????"????????????????????? | | ???? ?????#? ?????????"????????????????????? | | ???? #????# ??????????????????????????????? | | ????# #????? ???????????????????????????????? | | ????# ###### ?? ?? ???? ?????????????????????? | | ????# ?????+???????#??????????????????? | | ????# ????????? ???????????????????????? | | ????# ?????????????????????????????????? | | ????# ? ????????"?????????????????????????? | | ????# ? ????#?????"???????????????????????? | | ????#" ###/#######?????????"??? #????????????? | | ????# # #???????? ! +????????????? | | ???## # """""" #????#???"" ?????????????? | | ????# # """""" ########""" ???????????????? | | ????# / """"""[## # #""" ???#????????????? | | #???# # """"""=# ?????? ???????????? | | ????# #!% %=%u# #+#?????????????????? | | ????# #! %[%===k=% = x #?????????????????? | | ##### # """T"""[# !|%@ #?T ??????????????? | | ########## b ??????????? | | #????????# ????????? | | #????????# ?????????? | | #?#???#??# ?????????? | | #?#??????## ??????????? | | #+### #????????? ###########+??????????? | | # #??# ??? """ g " #??????????? ?????????? | | # #??#??"? """g "" #???#???????????? ????? | | # #??????" """ g G #????????????????? ???? | | # #??????"??"" "" #??????????????????#??# | | # #??????????" " #????????? ??? ???????? | | ##### ###?? ???? ?? ##?#?????? ???????????? | | ??# ###################################### | | ??# # | | ??# # | | ?## "" # """ """ " | | ??# T # """ """ " | | ??# # """ """ " | | ??# # | | ??# # ! | | ??# ####+#########+##### # | | ??#####+#####?# #???# ####+###### | | ????? ????# #???# ^ | | ??? ??# """ #???# | +----------------------------------------------------+ Best States ------------- Heat Dissipation 37 Energy Generation 16 Energy Capacity 290 Matter Stores 300 Matter Capacity 300 Sight Range 21 Terrain Scan Range 16 Terrain Scan Density 10 Armor Coverage 375 Evasion (%) 42 Targeting Accuracy 14 Recoil Reduction 4 Item Schematics ----------------- Flak Gun | -6/Factory | Scanalyzed Robot Schematics ------------------ None Fabricated ------------ Cld. Particle Cannon | x1 | -7/Factory | Preloaded Repaired ---------- Nothing Alien Tech Used ----------------- None Achievements -------------- None Challenges ------------ None Game ------ Seed SwarmHypervelocityCompressor Manual? 0 Play Time 00:27:31 Cumulative 81.8 hours Start 2025.05.06 @ 15:16:00 End 2025.05.06 @ 15:43:45 Sessions 1 Manual Loads 0 Difficulty Rogue Special Mode None Game No. 210 Rogue 210 Adventurer 0 Explorer 0 Win Type - Total 2 Types 2/0/0/0/0/0/0/0/0/0 Lore% 34 Gallery% 44 Achievement% 35 Wizard Run 0 Options --------- Layout 0 ASCII 0 Keyboard 0 Movement Numpad Keybinds 0 Fullscreen 2 Font 18/Terminus Map View 76x50 Zoom Use 0% Tactical HUD 1 Map Filters NONE Filters NONE Steam 1 RUN: 255e88ce-09a1-4bde-811e-fc4964f1c8e5